[Event "1st Cyprus Chess Tournament 2019"]
[Site "Larnaca"]
[Date "2019.10.29"]
[Round "6.12"]
[White "Biljanic, Ljubomir"]
[Black "Kourouyiannis, Fivos"]
[Result "1-0"]
[ECO "E94"]
[WhiteElo "2241"]
[BlackElo "1708"]
[Annotator "ChessBase"]
[PlyCount "83"]
[EventDate "2019.10.25"]
[EventType "swiss"]
[EventCountry "CYP"]
[SourceTitle "playchess.com"]
[Source "ChessBase"]
[SourceQuality "1"]
[TimeControl "5400+30"]

1. d4 {[%emt 0:00:00]} Nf6 {[%emt 0:00:00]} 2. Nf3 {[%emt 0:00:00]} g6 {[%emt 0:00:00]} 3. c4 {[%emt 0:00:00]} Bg7 {[%emt 0:00:00]} 4. Nc3 {[%emt 0:00:00]} O-O {[%emt 0:00:25]} 5. e4 {[%emt 0:00:00]} d6 {[%emt 0:00:15]} 6. Be2 {[%emt 0:00:04]} e5 {[%emt 0:00:43]} 7. d5 {[%emt 0:00:07]} a5 {[%emt 0:01:54]} 8. O-O {[%emt 0:00:04]} Na6 {[%emt 0:00:08]} 9. Ne1 {[%emt 0:00:11]} Nc5 {[%emt 0:00:46]} 10. Bg5 {[%emt 0:01:12]} h6 {[%emt 0:04:31]} 11. Bxf6 {[%emt 0:00:08]} Qxf6 {[%emt 0:10:43]} 12. Bg4 {[%emt 0:00:09]} Bxg4 {[%emt 0:13:48]} 13. Qxg4 {[%emt 0:00:09]} Qf4 {[%emt 0:00:09]} 14. Qe2 {[%emt 0:00:10]} f5 {[%emt 0:00:26]} 15. Nd3 {[%emt 0:00:12]} Nxd3 {[%emt 0:00:43]} 16. Qxd3 {[%emt 0:00:03]} fxe4 {[%emt 0:04:15]} 17. Nxe4 {[%emt 0:00:23]} Qf5 {[%emt 0:10:55]} 18. Rae1 {[%emt 0:02:28]} b6 {[%emt 0:06:16]} 19. b3 {[%emt 0:00:22]} Qd7 {[%emt 0:11:00]} 20. a3 {[%emt 0:00:32]} Kh7 {[%emt 0:00:47]} 21. Re3 {[%emt 0:00:40]} Rf4 {[%emt 0:03:40]} 22. Rh3 {[%emt 0:02:05]} Qf5 {[%emt 0:03:13]} 23. Re3 {[%emt 0:02:30]} Rf8 {[%emt 0:03:14]} 24. b4 {[%emt 0:00:38]} axb4 {[%emt 0:00:12]} 25. axb4 {[%emt 0:00:02]} Rf7 {[%emt 0:06:36]} 26. g3 {[%emt 0:03:12]} Rf3 {[%emt 0:00:33]} 27. c5 {[%emt 0:02:17]} bxc5 {[%emt 0:04:12]} 28. bxc5 {[%emt 0:00:03]} dxc5 {[%emt 0:02:41]} 29. Kg2 {[%emt 0:08:25]} Rxe3 {[%emt 0:02:07]} 30. fxe3 {[%emt 0:00:13]} Qxf1+ {[%emt 0:00:24]} 31. Qxf1 {[%emt 0:00:11]} Rxf1 {[%emt 0:00:02]} 32. Kxf1 {[%emt 0:00:18]} Bf8 {[%emt 0:00:18]} 33. Nf6+ {[%emt 0:01:10]} Kh8 {[%emt 0:00:36]} 34. Ke2 {[%emt 0:00:09]} Bd6 {[%emt 0:00:12]} 35. Kd3 {[%emt 0:00:37]} Kg7 {[%emt 0:00:30]} 36. Ne4 {[%emt 0:00:03]} Kf7 {[%emt 0:00:41]} 37. Kc4 {[%emt 0:00:07]} Ke7 {[%emt 0:09:57]} 38. Kb5 {[%emt 0:00:52]} Kd8 {[%emt 0:01:09]} 39. Nxc5 {[%emt 0:00:49]} Bxc5 {[%emt 0:00:43]} 40. Kxc5 {[%emt 0:00:09]} Kd7 {[%emt 0:00:02]} 41. e4 {[%emt 0:00:10]} g5 {[%emt 0:01:09]} 42. g4 {[%emt 0:00:08]} 1-0

[Event "1st Cyprus Chess Tournament 2019"]
[Site "Larnaca"]
[Date "2019.10.31"]
[Round "7.2"]
[White "Ulybin, Mikhail"]
[Black "Gleizerov, Evgeny"]
[Result "1/2-1/2"]
[ECO "E91"]
[WhiteElo "2455"]
[BlackElo "2512"]
[Annotator "ChessBase"]
[PlyCount "27"]
[EventDate "2019.10.25"]
[EventType "swiss"]
[EventCountry "CYP"]
[SourceTitle "playchess.com"]
[Source "ChessBase"]
[SourceQuality "1"]
[TimeControl "5400+30"]

1. c4 {[%emt 0:03:31]} Nf6 {[%emt 0:00:00]} 2. Nc3 {[%emt 0:00:44]} g6 {[%emt 0:00:05]} 3. e4 {[%emt 0:01:09]} d6 {[%emt 0:00:05]} 4. d4 {[%emt 0:00:45]} Bg7 {[%emt 0:00:06]} 5. Nf3 {[%emt 0:01:12]} O-O {[%emt 0:00:06]} 6. Be2 {[%emt 0:01:02]} Bg4 {[%emt 0:01:01]} 7. Be3 {[%emt 0:01:11]} Nfd7 {[%emt 0:00:21]} 8. Qb3 {[%emt 0:02:12]} Nc6 {[%emt 0:00:58]} 9. Qxb7 {[%emt 0:04:24]} Nb6 {[%emt 0:01:09]} 10. Qxc6 {[%emt 0:03:28]} Bd7 {[%emt 0:00:09]} 11. Qb7 {[%emt 0:00:43]} Bc8 {[%emt 0:00:08]} 12. Qc6 {[%emt 0:00:44]} Bd7 {[%emt 0:00:12]} 13. Qb7 {[%emt 0:00:43]} Bc8 {[%emt 0:00:05]} 14. Qc6 {[%emt 0:01:16]} 1/2-1/2

[Event "1st Cyprus Chess Tournament 2019"]
[Site "Larnaca"]
[Date "2019.11.01"]
[Round "8.1"]
[White "Kazakouski, Valery"]
[Black "Sumets, Andrey"]
[Result "1/2-1/2"]
[ECO "E11"]
[WhiteElo "2474"]
[BlackElo "2570"]
[Annotator "RC"]
[PlyCount "34"]
[EventDate "2019.10.25"]
[EventType "swiss"]
[EventCountry "CYP"]
[SourceTitle "playchess.com"]
[Source "ChessBase"]
[SourceQuality "1"]
[TimeControl "5400+30"]

1. d4 {[%emt 0:00:00]} Nf6 {[%emt 0:00:00]} 2. Nf3 {[%emt 0:00:00]} d5 {[%emt 0:00:00]} 3. c4 {[%emt 0:00:06]} e6 {[%emt 0:00:00]} 4. g3 {[%emt 0:00:10]} Bb4+ {[%emt 0:00:27]} 5. Bd2 {[%emt 0:00:10]} Be7 {[%emt 0:00:05]} 6. Bg2 {[%emt 0:00:08]} O-O {[%emt 0:00:09]} 7. O-O {[%emt 0:00:09]} c6 {[%emt 0:00:06]} 8. Qc2 {[%emt 0:00:08]} Nbd7 {[%emt 0:00:43]} 9. a4 {[%emt 0:00:07]} Ne4 {[%emt 0:00:46]} 10. a5 {[%emt 0:00:14]} a6 {[%emt 0:00:57]} 11. Nc3 {[%emt 0:01:53]} Nxd2 {[%emt 0:05:08]} 12. Nxd2 {[%emt 0:01:17]} f5 {[%emt 0:01:35]} 13. Rfb1 {[%emt 0:07:55]} Nf6 {[%emt 0:02:01]} 14. b4 {[%emt 0:01:52]} Bd6 {[%emt 0:05:36]} 15. Na4 {[%emt 0:04:38]} Bc7 {[%emt 0:08:40]} 16. e3 {[%emt 0:14:06]} Ne4 {[%emt 0:01:12]} 17. f4 {[%emt 0:06:26]} Nd6 {[%emt 0:05:25]} 1/2-1/2

[Event "1st Cyprus Chess Tournament 2019"]
[Site "Larnaca"]
[Date "2019.11.01"]
[Round "8.9"]
[White "Cherkasova, Marina"]
[Black "Florentiades, Michalis"]
[Result "1/2-1/2"]
[ECO "C42"]
[WhiteElo "2094"]
[BlackElo "2019"]
[Annotator "NA RC"]
[PlyCount "64"]
[EventDate "2019.10.25"]
[EventType "swiss"]
[EventCountry "CYP"]
[SourceTitle "playchess.com"]
[Source "ChessBase"]
[SourceQuality "1"]
[TimeControl "5400+30"]

1. e4 {[%emt 0:00:00]} e5 {[%emt 0:00:00]} 2. Nf3 {[%emt 0:00:00]} Nf6 {[%emt 0:00:00]} 3. Nxe5 {[%emt 0:03:00]} d6 {[%emt 0:00:02]} 4. Nf3 {[%emt 0:00:07]} Nxe4 {[%emt 0:00:06]} 5. d4 {[%emt 0:03:49]} d5 {[%emt 0:00:13]} 6. h3 {[%emt 0:02:52]} Bd6 {[%emt 0:01:37]} 7. Bd3 {[%emt 0:02:13]} O-O {[%emt 0:01:08]} 8. O-O {[%emt 0:00:44]} Bf5 {[%emt 0:08:09]} 9. c4 {[%emt 0:03:02]} c6 {[%emt 0:05:20]} 10. Qc2 {[%emt 0:06:38]} Na6 {[%emt 0:01:40]} 11. a3 {[%emt 0:00:39]} Bg6 {[%emt 0:00:24]} 12. c5 {[%emt 0:07:20]} Bb8 {[%emt 0:02:43]} 13. Nbd2 {[%emt 0:10:36]} f5 {[%emt 0:11:08]} 14. Bxa6 {[%emt 0:07:31]} bxa6 {[%emt 0:00:11]} 15. Qa4 {[%emt 0:02:41]} Qc8 {[%emt 0:02:02]} 16. Re1 {[%emt 0:03:01]} Bh5 {[%emt 0:04:47]} 17. b4 {[%emt 0:09:51]} g5 {[%emt 0:09:10]} 18. Ne5 {[%emt 0:05:06]} Bxe5 {[%emt 0:05:16]} 19. dxe5 {[%emt 0:00:21]} g4 {[%emt 0:02:12]} 20. hxg4 {[%emt 0:02:17]} fxg4 {[%emt 0:11:21]} 21. Nxe4 {[%emt 0:01:28]} dxe4 {[%emt 0:00:11]} 22. Bh6 {[%emt 0:09:59]} Rf5 {[%emt 0:10:09]} 23. Qb3+ {[%emt 0:02:12]} Bf7 {[%emt 0:00:41]} 24. Qg3 {[%emt 0:05:05]} Rh5 {[%emt 0:01:22]} 25. Qf4 {[%emt 0:01:00]} Qe6 {[%emt 0:05:39]} 26. Bg5 {[%emt 0:00:22]} Qg6 {[%emt 0:00:32]} 27. Bf6 {[%emt 0:02:05]} Bd5 {[%emt 0:01:27]} 28. Re3 {[%emt 0:02:07]} Rf5 {[%emt 0:01:53]} 29. Qg3 {[%emt 0:00:25]} Kf7 {[%emt 0:03:08]} 30. Rae1 {[%emt 0:01:02]} Rh5 {[%emt 0:01:21]} 31. Qf4 {[%emt 0:01:36]} Rf5 {[%emt 0:01:24]} 32. Qg3 {[%emt 0:00:05]} Rh5 {[%emt 0:00:06]} 1/2-1/2

[Event "1st Cyprus Chess Tournament 2019"]
[Site "Larnaca"]
[Date "2019.11.01"]
[Round "8.10"]
[White "Yeshchenko, Uliana"]
[Black "Constantinou, Pavlos"]
[Result "0-1"]
[ECO "B26"]
[WhiteElo "1650"]
[BlackElo "2093"]
[Annotator "NA RC"]
[PlyCount "114"]
[EventDate "2019.10.25"]
[EventType "swiss"]
[EventCountry "CYP"]
[SourceTitle "playchess.com"]
[Source "ChessBase"]
[SourceQuality "1"]
[TimeControl "5400+30"]

1. e4 {[%emt 0:00:00]} c5 {[%emt 0:00:00]} 2. Nc3 {[%emt 0:00:00]} Nc6 {[%emt 0:00:00]} 3. g3 {[%emt 0:00:00]} g6 {[%emt 0:00:19]} 4. Bg2 {[%emt 0:00:00]} Bg7 {[%emt 0:00:19]} 5. d3 {[%emt 0:00:00]} d6 {[%emt 0:00:20]} 6. Be3 {[%emt 0:00:04]} Nf6 {[%emt 0:00:06]} 7. h3 {[%emt 0:00:05]} Rb8 {[%emt 0:00:10]} 8. Nge2 {[%emt 0:00:06]} O-O {[%emt 0:00:23]} 9. O-O {[%emt 0:00:06]} b5 {[%emt 0:00:30]} 10. a3 {[%emt 0:00:05]} a5 {[%emt 0:02:08]} 11. d4 {[%emt 0:00:12]} cxd4 {[%emt 0:03:21]} 12. Nxd4 {[%emt 0:00:13]} Nxd4 {[%emt 0:00:11]} 13. Bxd4 {[%emt 0:00:06]} Qc7 {[%emt 0:11:03]} 14. Re1 {[%emt 0:06:51]} e5 {[%emt 0:01:30]} 15. Be3 {[%emt 0:01:06]} Be6 {[%emt 0:00:09]} 16. Bg5 {[%emt 0:06:03]} Qc5 {[%emt 0:08:52]} 17. Qd2 {[%emt 0:07:28]} Rfc8 {[%emt 0:03:20]} 18. Bxf6 {[%emt 0:14:45]} Bxf6 {[%emt 0:00:16]} 19. Rec1 {[%emt 0:10:02]} h5 {[%emt 0:06:32]} 20. Kh1 {[%emt 0:07:48]} Kh7 {[%emt 0:01:08]} 21. Nd1 {[%emt 0:04:46]} Bg7 {[%emt 0:01:29]} 22. Qxa5 {[%emt 0:04:56]} Bh6 {[%emt 0:00:57]} 23. Ne3 {[%emt 0:00:06]} Bxe3 {[%emt 0:00:48]} 24. fxe3 {[%emt 0:00:03]} Qxe3 {[%emt 0:00:29]} 25. Kh2 {[%emt 0:02:13]} h4 {[%emt 0:00:32]} 26. gxh4 {[%emt 0:01:03]} Qf4+ {[%emt 0:00:18]} 27. Kg1 {[%emt 0:00:05]} Qxh4 {[%emt 0:00:56]} 28. Qa7 {[%emt 0:00:29]} Kg7 {[%emt 0:02:25]} 29. Qf2 {[%emt 0:00:20]} Rh8 {[%emt 0:00:21]} 30. Rd1 {[%emt 0:12:42]} Bxh3 {[%emt 0:02:46]} 31. Rxd6 {[%emt 0:03:47]} Bxg2 {[%emt 0:00:31]} 32. Qxh4 {[%emt 0:00:04]} Rxh4 {[%emt 0:00:16]} 33. Kxg2 {[%emt 0:00:02]} Rxe4 {[%emt 0:00:10]} 34. Kf3 {[%emt 0:01:10]} Rf4+ {[%emt 0:00:35]} 35. Ke3 {[%emt 0:00:05]} Rh8 {[%emt 0:05:23]} 36. Rd5 {[%emt 0:02:12]} Rh3+ {[%emt 0:00:08]} 37. Ke2 {[%emt 0:00:53]} Rh2+ {[%emt 0:04:55]} 38. Kd3 {[%emt 0:02:06]} Rff2 {[%emt 0:06:47]} 39. Rxb5 {[%emt 0:03:07]} Rd2+ {[%emt 0:03:04]} 40. Kc4 {[%emt 0:03:16]} Rxc2+ {[%emt 0:01:03]} 41. Kd5 {[%emt 0:00:04]} Rcd2+ {[%emt 0:08:39]} 42. Kc6 {[%emt 0:00:19]} e4 {[%emt 0:00:14]} 43. Re1 {[%emt 0:01:27]} Rc2+ {[%emt 0:00:50]} 44. Kd6 {[%emt 0:01:15]} Rxb2 {[%emt 0:08:12]} 45. Rxb2 {[%emt 0:00:31]} Rf2 {[%emt 0:00:05]} 46. Rc2 Rxc2 {[%emt 0:00:30]} 47. Rxe4 {[%emt 0:00:32]} Ra2 {[%emt 0:00:15]} 48. a4 {[%emt 0:01:07]} f5 {[%emt 0:00:38]} 49. Rb4 {[%emt 0:00:34]} Kf6 {[%emt 0:00:24]} 50. Kd5 {[%emt 0:00:07]} Kg5 {[%emt 0:00:26]} 51. Ke5 {[%emt 0:03:50]} Re2+ {[%emt 0:00:13]} 52. Kd4 {[%emt 0:00:11]} f4 {[%emt 0:01:26]} 53. a5 {[%emt 0:00:21]} Ra2 {[%emt 0:00:40]} 54. Rb5+ {[%emt 0:01:33]} Kg4 {[%emt 0:00:08]} 55. Ke4 {[%emt 0:00:38]} f3 {[%emt 0:01:26]} 56. Rb1 {[%emt 0:00:43]} f2 {[%emt 0:00:19]} 57. Ke3 {[%emt 0:02:11]} Kg3 {[%emt 0:00:20]} 0-1

[Event "1st Cyprus Chess Tournament 2019"]
[Site "Larnaca"]
[Date "2019.11.02"]
[Round "9.1"]
[White "Kotronias, Vasilios"]
[Black "Kazakouski, Valery"]
[Result "1-0"]
[ECO "C95"]
[WhiteElo "2486"]
[BlackElo "2474"]
[Annotator "ChessBase"]
[PlyCount "77"]
[EventDate "2019.10.25"]
[EventType "swiss"]
[EventCountry "CYP"]
[SourceTitle "playchess.com"]
[Source "ChessBase"]
[SourceQuality "1"]
[TimeControl "5400+30"]

1. e4 {[%emt 0:01:25]} e5 {[%emt 0:00:00]} 2. Nf3 {[%emt 0:00:12]} Nc6 {[%emt 0:00:00]} 3. Bb5 {[%emt 0:00:09]} a6 {[%emt 0:00:05]} 4. Ba4 {[%emt 0:00:05]} Nf6 {[%emt 0:00:08]} 5. O-O {[%emt 0:00:07]} Be7 {[%emt 0:00:06]} 6. Re1 {[%emt 0:00:04]} b5 {[%emt 0:00:11]} 7. Bb3 {[%emt 0:00:05]} O-O {[%emt 0:00:08]} 8. c3 {[%emt 0:00:09]} d6 {[%emt 0:00:06]} 9. h3 {[%emt 0:00:07]} Nb8 {[%emt 0:00:16]} 10. d4 {[%emt 0:00:11]} Nbd7 {[%emt 0:00:06]} 11. Nbd2 {[%emt 0:00:21]} Bb7 {[%emt 0:00:14]} 12. Bc2 {[%emt 0:00:07]} Re8 {[%emt 0:00:13]} 13. Nf1 {[%emt 0:00:06]} Bf8 {[%emt 0:00:07]} 14. Ng3 {[%emt 0:00:05]} g6 {[%emt 0:00:08]} 15. a4 {[%emt 0:01:31]} c5 {[%emt 0:00:07]} 16. d5 {[%emt 0:00:11]} c4 {[%emt 0:00:06]} 17. Bg5 {[%emt 0:00:24]} Nc5 {[%emt 0:00:07]} 18. Qd2 {[%emt 0:00:09]} Be7 {[%emt 0:01:11]} 19. Bh6 {[%emt 0:00:06]} Nfd7 {[%emt 0:00:40]} 20. Nh2 {[%emt 0:00:07]} Nxa4 {[%emt 0:01:27]} 21. Bxa4 {[%emt 0:00:08]} bxa4 {[%emt 0:00:06]} 22. Rxa4 {[%emt 0:00:13]} a5 {[%emt 0:00:41]} 23. Ng4 {[%emt 0:00:12]} Ba6 {[%emt 0:00:48]} 24. f4 {[%emt 0:00:05]} Bh4 {[%emt 0:04:37]} 25. Bg5 {[%emt 0:02:53]} Bxg5 {[%emt 0:27:01]} 26. fxg5 {[%emt 0:00:03]} h5 {[%emt 0:02:38]} 27. Nh6+ {[%emt 0:12:11]} Kh7 {[%emt 0:15:33]} 28. Rf1 {[%emt 0:02:38]} Rf8 {[%emt 0:03:10]} 29. Nxh5 {[%emt 0:04:19]} gxh5 {[%emt 0:11:14]} 30. Rf3 {[%emt 0:05:39]} Kg6 {[%emt 0:15:21]} 31. Nf5 {[%emt 0:02:46]} Qb6+ {[%emt 0:03:12]} 32. Kh2 {[%emt 0:00:07]} Rh8 {[%emt 0:01:32]} 33. Ra1 {[%emt 0:01:46]} h4 {[%emt 0:04:44]} 34. Raf1 {[%emt 0:00:12]} Raf8 {[%emt 0:02:37]} 35. Ne7+ {[%emt 0:01:08]} Kg7 {[%emt 0:00:37]} 36. Rf6 {[%emt 0:00:18]} Qd8 {[%emt 0:03:05]} 37. Nf5+ {[%emt 0:00:52]} Kg8 {[%emt 0:00:35]} 38. Rxd6 {[%emt 0:02:12]} Bc8 {[%emt 0:01:08]} 39. g6 {[%emt 0:00:12]} 1-0

[Event "1st Cyprus Chess Tournament 2019"]
[Site "Larnaca"]
[Date "2019.11.02"]
[Round "9.2"]
[White "Tilicheev, Viacheslav"]
[Black "Arkell, Keith C"]
[Result "1/2-1/2"]
[ECO "D14"]
[WhiteElo "2478"]
[BlackElo "2447"]
[Annotator "ChessBase"]
[PlyCount "23"]
[EventDate "2019.10.25"]
[EventType "swiss"]
[EventCountry "CYP"]
[SourceTitle "playchess.com"]
[Source "ChessBase"]
[SourceQuality "1"]
[TimeControl "5400+30"]

1. d4 {[%emt 0:00:00]} d5 {[%emt 0:00:00]} 2. c4 {[%emt 0:00:00]} c6 {[%emt 0:00:00]} 3. cxd5 {[%emt 0:00:00]} cxd5 {[%emt 0:00:00]} 4. Nf3 {[%emt 0:00:00]} Nf6 {[%emt 0:00:00]} 5. Nc3 {[%emt 0:00:00]} Nc6 {[%emt 0:00:00]} 6. Bf4 {[%emt 0:00:03]} Bf5 {[%emt 0:00:00]} 7. e3 {[%emt 0:00:03]} e6 {[%emt 0:00:00]} 8. Bd3 {[%emt 0:00:04]} Bxd3 {[%emt 0:00:00]} 9. Qxd3 {[%emt 0:00:03]} Bd6 {[%emt 0:00:04]} 10. Bxd6 {[%emt 0:00:05]} Qxd6 {[%emt 0:00:03]} 11. O-O {[%emt 0:00:05]} O-O {[%emt 0:00:02]} 12. Rfc1 {[%emt 0:00:17]} 1/2-1/2

[Event "1st Cyprus Chess Tournament 2019"]
[Site "Larnaca"]
[Date "2019.11.02"]
[Round "9.3"]
[White "Sumets, Andrey"]
[Black "Biljanic, Ljubomir"]
[Result "1-0"]
[ECO "E05"]
[WhiteElo "2570"]
[BlackElo "2241"]
[Annotator "ChessBase"]
[PlyCount "99"]
[EventDate "2019.10.25"]
[EventType "swiss"]
[EventCountry "CYP"]
[SourceTitle "playchess.com"]
[Source "ChessBase"]
[SourceQuality "1"]
[TimeControl "5400+30"]

1. d4 {[%emt 0:00:00]} Nf6 {[%emt 0:00:00]} 2. Nf3 {[%emt 0:00:00]} e6 {[%emt 0:00:00]} 3. c4 {[%emt 0:00:00]} d5 {[%emt 0:00:29]} 4. g3 {[%emt 0:01:03]} Be7 {[%emt 0:00:09]} 5. Bg2 {[%emt 0:00:06]} O-O {[%emt 0:00:11]} 6. O-O {[%emt 0:02:18]} dxc4 {[%emt 0:03:47]} 7. Qc2 {[%emt 0:00:06]} Nc6 {[%emt 0:01:09]} 8. Qxc4 {[%emt 0:00:39]} Qd5 {[%emt 0:01:11]} 9. Nbd2 {[%emt 0:00:59]} Rd8 {[%emt 0:02:51]} 10. e3 {[%emt 0:00:20]} Qh5 {[%emt 0:10:12]} 11. h3 {[%emt 0:04:45]} Bd7 {[%emt 0:06:27]} 12. a3 {[%emt 0:01:13]} a5 {[%emt 0:09:48]} 13. b3 {[%emt 0:00:13]} Rac8 {[%emt 0:02:33]} 14. Bb2 {[%emt 0:00:37]} Nd5 {[%emt 0:04:12]} 15. Rfc1 {[%emt 0:08:10]} Qh6 {[%emt 0:00:21]} 16. Ne4 {[%emt 0:01:33]} b6 {[%emt 0:03:19]} 17. Qe2 {[%emt 0:01:21]} f6 {[%emt 0:02:53]} 18. Ned2 {[%emt 0:03:01]} f5 {[%emt 0:07:56]} 19. Rc2 {[%emt 0:02:37]} Bf6 {[%emt 0:01:56]} 20. Rac1 {[%emt 0:00:58]} Nce7 {[%emt 0:01:18]} 21. Nc4 {[%emt 0:09:34]} Nc6 {[%emt 0:04:23]} 22. e4 {[%emt 0:07:32]} fxe4 {[%emt 0:00:13]} 23. Qxe4 {[%emt 0:00:04]} Qg6 {[%emt 0:03:00]} 24. Qxg6 {[%emt 0:03:53]} hxg6 {[%emt 0:00:02]} 25. h4 {[%emt 0:02:44]} Be8 {[%emt 0:07:04]} 26. Bh3 {[%emt 0:04:47]} Kf7 {[%emt 0:01:44]} 27. Ncd2 {[%emt 0:01:17]} Nce7 {[%emt 0:00:34]} 28. Ne4 {[%emt 0:03:12]} Nf5 {[%emt 0:00:14]} 29. Re1 {[%emt 0:00:10]} Ke7 {[%emt 0:03:46]} 30. Rce2 {[%emt 0:02:07]} Bf7 {[%emt 0:02:47]} 31. Neg5 {[%emt 0:01:52]} Bxg5 {[%emt 0:01:58]} 32. Nxg5 {[%emt 0:00:07]} Rd6 {[%emt 0:00:21]} 33. h5 {[%emt 0:00:32]} Bg8 {[%emt 0:07:12]} 34. hxg6 {[%emt 0:01:07]} Rf8 {[%emt 0:00:38]} 35. Re5 {[%emt 0:02:03]} Kd7 {[%emt 0:01:01]} 36. Nh7 {[%emt 0:01:38]} Bxh7 {[%emt 0:01:21]} 37. gxh7 {[%emt 0:00:04]} g6 {[%emt 0:00:38]} 38. Bxf5 {[%emt 0:06:29]} gxf5 {[%emt 0:00:04]} 39. Kg2 {[%emt 0:00:09]} Rh8 {[%emt 0:01:18]} 40. Rh1 {[%emt 0:00:04]} Ke7 {[%emt 0:04:48]} 41. Rh6 {[%emt 0:01:51]} b5 {[%emt 0:00:34]} 42. Bc1 {[%emt 0:01:46]} Kf7 {[%emt 0:00:01]} 43. Bg5 {[%emt 0:00:33]} c6 {[%emt 0:02:17]} 44. Kf3 {[%emt 0:02:42]} Nb6 {[%emt 0:01:51]} 45. Rf6+ {[%emt 0:00:56]} Kg7 {[%emt 0:00:17]} 46. Rfxe6 {[%emt 0:00:10]} Rxe6 {[%emt 0:00:05]} 47. Rxe6 {[%emt 0:00:04]} Kxh7 {[%emt 0:00:38]} 48. Rxc6 {[%emt 0:00:10]} Rb8 {[%emt 0:00:16]} 49. Bf4 {[%emt 0:01:02]} Rb7 {[%emt 0:00:01]} 50. Rc5 {[%emt 0:00:55]} 1-0

[Event "1st Cyprus Chess Tournament 2019"]
[Site "Larnaca"]
[Date "2019.11.02"]
[Round "9.5"]
[White "Ulybin, Mikhail"]
[Black "Constantinou, Pavlos"]
[Result "1-0"]
[ECO "B27"]
[WhiteElo "2455"]
[BlackElo "2093"]
[Annotator "ChessBase"]
[PlyCount "83"]
[EventDate "2019.10.25"]
[EventType "swiss"]
[EventCountry "CYP"]
[SourceTitle "playchess.com"]
[Source "ChessBase"]
[SourceQuality "1"]
[TimeControl "5400+30"]

1. e4 {[%emt 0:02:28]} c5 {[%emt 0:00:00]} 2. Nf3 {[%emt 0:00:35]} g6 {[%emt 0:00:00]} 3. Bc4 {[%emt 0:03:17]} Bg7 {[%emt 0:00:31]} 4. c3 {[%emt 0:01:21]} e6 {[%emt 0:01:29]} 5. d4 {[%emt 0:07:12]} cxd4 {[%emt 0:00:33]} 6. cxd4 {[%emt 0:00:33]} d5 {[%emt 0:00:41]} 7. exd5 {[%emt 0:13:30]} exd5 {[%emt 0:00:04]} 8. Bb5+ {[%emt 0:01:08]} Nc6 {[%emt 0:01:11]} 9. Bxc6+ {[%emt 0:20:11]} bxc6 {[%emt 0:00:02]} 10. O-O {[%emt 0:00:34]} Ne7 {[%emt 0:00:52]} 11. h3 {[%emt 0:17:01]} O-O {[%emt 0:00:26]} 12. Nc3 {[%emt 0:03:02]} Qd6 {[%emt 0:05:15]} 13. Re1 {[%emt 0:02:22]} Be6 {[%emt 0:04:36]} 14. Na4 {[%emt 0:04:32]} Rfe8 {[%emt 0:03:26]} 15. Bg5 {[%emt 0:05:33]} h6 {[%emt 0:05:07]} 16. Bxe7 {[%emt 0:01:22]} Rxe7 {[%emt 0:00:21]} 17. Qd2 {[%emt 0:08:30]} Rae8 {[%emt 0:01:59]} 18. Nc5 {[%emt 0:04:11]} Bf5 {[%emt 0:08:32]} 19. Rxe7 {[%emt 0:00:26]} Rxe7 {[%emt 0:00:05]} 20. Re1 {[%emt 0:00:57]} Be4 {[%emt 0:00:22]} 21. Nh2 {[%emt 0:00:44]} Qf6 {[%emt 0:00:06]} 22. Nb3 {[%emt 0:00:55]} h5 {[%emt 0:02:14]} 23. Nf1 {[%emt 0:00:32]} Kh7 {[%emt 0:03:42]} 24. Ng3 {[%emt 0:00:25]} Bh6 {[%emt 0:01:05]} 25. Qc3 {[%emt 0:00:29]} Bf4 {[%emt 0:05:55]} 26. Nxe4 {[%emt 0:00:27]} dxe4 {[%emt 0:00:04]} 27. Nc5 {[%emt 0:00:33]} Qf5 {[%emt 0:08:39]} 28. Qc2 {[%emt 0:00:28]} Qd5 {[%emt 0:05:01]} 29. Rxe4 {[%emt 0:00:29]} Bd6 {[%emt 0:04:28]} 30. Rxe7 {[%emt 0:00:32]} Bxe7 {[%emt 0:00:03]} 31. Qe4 {[%emt 0:00:30]} Qg5 {[%emt 0:04:45]} 32. Nb3 {[%emt 0:00:37]} c5 {[%emt 0:08:04]} 33. h4 {[%emt 0:00:26]} Qf6 {[%emt 0:09:45]} 34. dxc5 {[%emt 0:00:21]} Bd8 {[%emt 0:00:40]} 35. Nd4 {[%emt 0:00:33]} Bc7 {[%emt 0:00:25]} 36. b4 {[%emt 0:00:28]} Qa6 {[%emt 0:03:13]} 37. Qe7 {[%emt 0:00:32]} Qxa2 {[%emt 0:00:18]} 38. Qxc7 {[%emt 0:00:14]} Qa1+ {[%emt 0:00:06]} 39. Kh2 {[%emt 0:00:11]} Qxd4 {[%emt 0:00:11]} 40. Qxf7+ {[%emt 0:00:13]} Kh6 {[%emt 0:00:07]} 41. g3 {[%emt 0:01:17]} Qxb4 {[%emt 0:00:33]} 42. Qf4+ {[%emt 0:00:33]} 1-0